Workbook

Sheet 1. Forside
A1: Energi Viborg Vand A/S
D8: Bilag A
D13: Indholdsfortegnelse
C16: Fane nr. 2 | D16: Samlet prisloft
C17: Fane nr. 3 | D17: Driftsomkostninger
C18: Fane nr. 4 | D18: Historiske investeringer
C19: Fane nr. 5 | D19: Gennemførte investeringer
C20: Fane nr. 6 | D20: Korrektion investeringer
C21: Fane nr. 7 | D21: Planlagte investeringer
C22: Fane nr. 8 | D22: 1:1 omkostninger
C23: Fane nr. 9 | D23: Miljø- og servicemål
C24: Fane nr. 10 | D24: Nettofinansielle poster
C25: Fane nr. 11 | D25: Over- eller underdækning
C26: Fane nr. 12 | D26: Kontrol med indtægtsrammen og oversigt over ekstraordinære effektiviseringsgevinster

Sheet 2. Samlet prisloft
A1: ='1. Forside'!A1 -> Energi Viborg Vand A/S
B4: Fane 2. Samlet prisloft for 2015
B6: Driftsomkostninger
B7: Driftsomkostninger i prisloftet for 2014 | C7: ='3. Driftsomkostninger'!C20 -> 16113728.56 | D7: kr.
B8: Bortfald af væsentlige omkostninger | C8: =-'3. Driftsomkostninger'!C16 -> 0 | D8: kr.
B9: Korrektion for prisudviklingen 2014-2015 | C9: ='3. Driftsomkostninger'!C22 -> 12890.98285 | D9: kr.
B10: Forhøjelse til effektivt niveau iht. benchmarkingen | C10: ='3. Driftsomkostninger'!C28 -> 0 | D10: kr.
B11: Korrektion for generelt effektiviseringskrav | C11: =-'3. Driftsomkostninger'!C34 -> -70900.40569 | D11: kr.
B12: Korrektion for individuelt effektiviseringskrav | C12: =-'3. Driftsomkostninger'!C43 -> -364975.9619 | D12: kr.
B13: Driftsomkostninger i alt | C13: =SUM(C7:C12) -> 15690743.18 | D13: kr. | E13: =C13 -> 15690743.18 | F13: kr.
B14: Investeringer
B15: Tillæg for historiske investeringer | C15: ='4. Historiske investeringer'!C9 -> 10016487.9 | D15: kr.
B16: Tillæg for gennemførte investeringer i 2011-2013 | C16: ='5. Gennemførte investeringer'!F29 -> 1326528.393 | D16: kr.
B17: Korrektion af tillæg for planlagte investeringer vedrørende 2013 | C17: ='6. Korrektion investeringer'!C10 -> 811286.04 | D17: kr.
B18: Tillæg for planlagte investeringer i 2014 og 2015 | C18: ='7. Planlagte investeringer'!F35 -> 846260 | D18: kr.
B19: Investeringstillæg i alt | C19: =SUM(C15:C18) -> 13000562.34 | D19: kr. | E19: =C19 -> 13000562.34 | F19: kr.
B20: Øvrige omkostninger mv.
B21: Tillæg for 1:1 omkostninger i 2015 | C21: ='8. 1-1 omkostninger'!C10 -> 218000 | D21: kr.
B22: Tillæg for afgift for ledningsført vand i 2015 | C22: ='8. 1-1 omkostninger'!C15 -> 15019000 | D22: kr.
B23: Tillæg vedr. revisorerklæringer og DANVA/FVD-kontingent | C23: ='8. 1-1 omkostninger'!C21 -> 145000 | D23: kr.
B24: Korrektion ift. faktiske 1:1 omkostninger i 2013 | C24: ='8. 1-1 omkostninger'!C27 -> -4508 | D24: kr.
B25: Tillæg for driftsomkostninger til miljø- og servicemål i 2015 | C25: ='9. Miljø- og servicemål'!C13 -> 705000 | D25: kr.
B26: Korrektion ift. faktiske driftsomkostninger til miljø- og servicemål i 2013 | C26: ='9. Miljø- og servicemål'!C20 -> -201308 | D26: kr.
B27: Tillæg/fradrag for nettofinansielle poster i 2015 | C27: ='10. Nettofinansielle poster'!C9 -> 1100000 | D27: kr.
B28: Korrektion ift. faktiske nettofinansielle poster i 2013 | C28: ='10. Nettofinansielle poster'!C16 -> -378876 | D28: kr.
B29: Øvrige omkostninger mv. i alt | C29: =SUM(C21:C28) -> 16602308 | D29: kr. | E29: =C29 -> 16602308 | F29: kr.
B30: Historisk over- eller underdækning
B31: Tillæg/fradrag for over- eller underdækning til og med 2010 | C31: ='11. Over- eller underdækning'!C11 -> 0 | D31: kr. | E31: =C31 -> 0 | F31: kr.
B32: Korrektion i forhold til tidligere indtægtsramme
B33: Korrektion for overholdelse af indtægtsramme i prisloft 2013 | C33: ='12. Kontrol med indtægtsrammen'!E27 -> 29503 | D33: kr. | E33: =C33 -> 29503 | F33: kr.
B34: Samlet prisloft
B35: Indtægtsramme i 2015 | E35: =SUM(E13:E33) -> 45323116.52 | F35: kr.
B36: Debiteret vandmængde i 2013 | E36: 2306114 | F36: m3
B37: Prisloft 2015 | E37: =E35/E36 -> 19.65345881 | F37: kr./m3
B38: Prisloft 2015 ekskl. afgift for ledningsført vand | E38: =(E35-C22)/E36 -> 13.14077123 | F38: kr./m3

Sheet 3. Driftsomkostninger
A1: ='1. Forside'!A1 -> Energi Viborg Vand A/S
B4: Fane 3. Driftsomkostninger
B6: Driftsomkostningerne i prisloftet for 2014
B7: Korrigerede driftsomkostninger i prisloftet for 2013 (DOiPL 2013) | C7: 16349571 | D7: kr.
B8: Prisfremskrivning 1,5 pct. | C8: =0.015*SUM(C7:C7) -> 245243.565 | D8: kr.
B9: Generelt effektiviseringskrav (0 pct.) | C9: 0 | D9: kr.
B10: Individuelt effektiviseringskrav | C10: -481086 | D10: kr.
B11: Driftsomkostningerne i prisloftet for 2014 (DOiPL 2014) | C11: =SUM(C7:C10) -> 16113728.56 | D11: kr.
B14: Korrektion for forventet bortfald af væsentlige omkostninger
B15: Selskabets indberettede bortfald af væsentlige omkostninger inden 2015 | C15: 0 | D15: kr.
B16: Korrektion for forventet bortfald | C16: =SUM(C15:C15) -> 0 | D16: kr.
B19: Korrektion for prisudviklingen fra 2014-2015
B20: Driftsomkostningerne i prisloftet for 2014 | C20: =C11-C16 -> 16113728.56 | D20: kr.
B21: Prisudvikling 2014 - 2015 | C21: 0.08 | D21: pct.
B22: Korrektion for prisudvikling | C22: =C20*(C21/100) -> 12890.98285 | D22: kr.
B25: Eventuel forhøjelse til effektivt niveau iht. benchmarkingen
B26: Selskabets effektive driftsomkostninger iht. benchmarkingen | C26: 12096576.36 | D26: kr.
B27: Selskabets pristalskorrigerede driftsomkostninger i 2015-niveau | C27: =C20+C22 -> 16126619.55 | D27: kr.
B28: Eventuel forhøjelse til effektivt niveau | C28: =IF(C27>C26,0,C26-C27) -> 0 | D28: kr.
B31: Korrektion for generelt effektiviseringskrav
B32: Driftsomkostningerne i prisloftet for 2014 | C32: =C20 -> 16113728.56 | D32: kr.
B33: Generelt effektiviseringskrav | C33: 0.44 | D33: pct.
B34: Endeligt generelt effektiviseringskrav | C34: =C32*(C33/100) -> 70900.40569 | D34: kr.
B37: Korrektion for individuelt effektiviseringskrav
B38: Rå effektiviseringspotentiale | C38: 4289474.66 | D38: kr.
B39: Effektiviseringspotentiale efter eventuel korrektion for særlige forhold | C39: 4017152.64 | D39: kr.
B40: Effektiviseringspotentiale efter forsigtighedshensyn | C40: 1459903.847 | D40: kr.
B41: Effektiviseringspotentiale efter eventuel korrektion for sammensætning af signifikante costdrivere | C41: 1459903.847 | D41: kr.
B42: Umiddelbart effektiviseringskrav | C42: =C41/4 -> 364975.9619 | D42: kr.
B43: Endeligt individuelt effektiviseringskrav | C43: =IF(C42>0.05*C20,0.05*C20,IF(C42<0.01*C20,0,C42)) -> 364975.9619 | D43: kr.

Sheet 4. Historiske investeringer
A1: ='3. Driftsomkostninger'!A1 -> Energi Viborg Vand A/S
B4: Fane 4. Historiske investeringer
B6: Tillæg for historiske investeringer
B7: Værdi af selskabets materielle anlægsaktiver pr. 1. januar 2010 | C7: 432514940.9 | D7: kr.
B8: Den årlige standardafskrivning på de materielle anlægsaktiver iht. POLKA | C8: 10016487.9 | D8: kr.
B9: Tillæg i alt i 2015 | C9: =C8 -> 10016487.9 | D9: kr.

Sheet 5. Gennemførte investeringer
A1: ='4. Historiske investeringer'!A1 -> Energi Viborg Vand A/S
B4: Fane 5. Gennemførte investeringer i 2010 - 2013
B6: Tillæg for gennemførte investeringer i 2013
B7: Beskrivelse af investeringen | C7: Årstal | D7: Std. levetid (år) | E7: Anskaffelses-pris (kr.) | F7: Afskrivning
B8: Sikring (terror, hærværk), SRO | C8: 2013 | D8: 10 | E8: 2749815 | F8: =E8/D8 -> 274981.5 | G8: kr.
B9: Sikring (terror, hærværk), Mek./EL | C9: 2013 | D9: 25 | E9: 636087 | F9: 25443.48 | G9: kr.
B10: SRO anlæg | C10: 2013 | D10: 10 | E10: 53457 | F10: 5345.7 | G10: kr.
B11: Elanlæg | C11: 2013 | D11: 20 | E11: 207148 | F11: 10357.4 | G11: kr.
B12: Instrumenter (flowmåler+tryk transducer+alarmer) | C12: 2013 | D12: 10 | E12: 126961 | F12: 12696.1 | G12: kr.
B13: Pumpe inkl. stigrør og forerørsforsejlinger mv. | C13: 2013 | D13: 15 | E13: 167055 | F13: =E13/D13 -> 11137 | G13: kr.
B14: Råvandsstation komplet montering og boringshus/tørbrønd | C14: 2013 | D14: 30 | E14: 113597 | F14: 3786.566667 | G14: kr.
B15: Ø 50mm < Ledningsnet = Ø110 mm | C15: 2013 | D15: 75 | E15: 2740966 | F15: 36546.21333 | G15: kr.
B16: Skelbrønd, Mek./EL | C16: 2013 | D16: 15 | E16: 21355 | F16: 1423.666667 | G16: kr.
B17: Skelbrønd, Konstruktioner | C17: 2013 | D17: 50 | E17: 49828 | F17: 996.56 | G17: kr.
B18: Stik på ledningsnet, Konstruktioner | C18: 2013 | D18: 75 | E18: 2317058 | F18: 30894.10667 | G18: kr.
B19: Pumpestation (inkl. evt. hydrofor)/trykforøger, SRO | C19: 2013 | D19: 10 | E19: 27239 | F19: 2723.9 | G19: kr.
B20: Pumpestation (inkl. evt. hydrofor)/trykforøger, Mek./EL | C20: 2013 | D20: 25 | E20: 21105 | F20: 844.2 | G20: kr.
B21: Pumpestation (inkl. evt. hydrofor)/trykforøger, Konstruktioner | C21: 2013 | D21: 50 | E21: 488176 | F21: 9763.52 | G21: kr.
B22: Afregningsmålere, mekaniske | C22: 2013 | D22: 8 | E22: 1307810 | F22: 163476.25 | G22: kr.
B23: Køretøjer, personbil | C23: 2013 | D23: 5 | E23: 395563 | F23: 79112.6 | G23: kr.
B24: Beluftningsanlæg, ika-beluftning, Kontruktioner | C24: 2013 | D24: 50 | E24: 412072 | F24: 8241.44 | G24: kr.
B25: Beholderanlæg - vandtårn | C25: 2013 | D25: 20 | E25: 89043 | F25: 4452.15 | G25: kr.
B26: Beholderanlæg - vandtårn | C26: 2013 | D26: 30 | E26: 991220 | F26: 33040.66667 | G26: kr.
B27: Tillæg for 2013 | F27: =SUM(F8:F26) -> 715263.02 | G27: kr.
B28: Tillæg for 2010 - 2012 | F28: 611265.3733 | G28: kr.
B29: Samlet tillæg for gennemførte investeringer | F29: =F27+F28 -> 1326528.393 | G29: kr.

Sheet 6. Korrektion investeringer
A1: ='5. Gennemførte investeringer'!A1 -> Energi Viborg Vand A/S
B4: Fane 6. Korrektion af tillæg for planlagte investeringer
B6: Korrektion af tillæg for planlagte investeringer vedr. 2013
B7: Tillæg for planlagte investeringer i 2013 i prisloft 2013 | C7: 187080 | D7: kr.
B8: Tillæg for planlagte investeringer i 2013 i prisloft 2014 | C8: 432160 | D8: kr.
B9: Selskabets faktiske afskrivninger på gennemførte investeringer i 2013 | C9: ='5. Gennemførte investeringer'!F27 -> 715263.02 | D9: kr.
B10: Korrektion af tillæg for planlagte investeringer vedr. 2013 | C10: =C9-C7+C9-C8 -> 811286.04 | D10: kr.

Sheet 7. Planlagte investeringer
A1: ='6. Korrektion investeringer'!A1 -> Energi Viborg Vand A/S
B4: Fane 7. Planlagte investeringer
B6: Tillæg for planlagte investeringer i 2014 og 2015
B7: Beskrivelse af investeringen | C7: Årstal | D7: Std. levetid (år) | E7: Anskaffelses-pris (kr.) | F7: Afskrivning
B8: Råvandsstation komplet montering og boringshus/tørbrønd | C8: 2014 | D8: 30 | E8: 50000 | F8: =E8/D8 -> 1666.666667 | G8: kr.
B9: Pumpe inkl. stigrør og forerørsforsejlinger mv. | C9: 2014 | D9: 15 | E9: 70000 | F9: 4666.666667 | G9: kr.
B10: SRO anlæg | C10: 2014 | D10: 10 | E10: 30000 | F10: 3000 | G10: kr.
B11: Udpumpningsanlæg, rentvandspumper på vandværk | C11: 2014 | D11: 25 | E11: 850000 | F11: 34000 | G11: kr.
B12: Pumpestation (inkl. evt. hydrofor)/trykforøger, Konstruktioner | C12: 2014 | D12: 50 | E12: 750000 | F12: 15000 | G12: kr.
B13: Pumpestation (inkl. evt. hydrofor)/trykforøger, Mek./EL | C13: 2014 | D13: 25 | E13: 150000 | F13: 6000 | G13: kr.
B14: Beholderanlæg - vandtårn | C14: 2014 | D14: 50 | E14: 1000000 | F14: 20000 | G14: kr.
B15: Køretøjer, personbil | C15: 2014 | D15: 5 | E15: 400000 | F15: 80000 | G15: kr.
B16: Køretøjer, personbil | C16: 2014 | D16: 5 | E16: 400000 | F16: 80000 | G16: kr.
B17: Ø 50mm < Ledningsnet = Ø110 mm | C17: 2014 | D17: 75 | E17: 5638000 | F17: 75173.33333 | G17: kr.
B18: Stik på ledningsnet, Konstruktioner | C18: 2014 | D18: 75 | E18: 352000 | F18: 4693.333333 | G18: kr.
B19: Afregningsmålere, mekaniske | C19: 2014 | D19: 8 | E19: 1200000 | F19: =E19/D19 -> 150000 | G19: kr.
B20: Ledningsnet = Ø50 mm | C20: 2014 | D20: 75 | E20: 1717000 | F20: =E20/D20 -> 22893.33333 | G20: kr.
B21: Køretøjer, personbil | C21: 2015 | D21: 5 | E21: 300000 | F21: =E21/D21 -> 60000 | G21: kr.
B22: Afregningsmålere, mekaniske | C22: 2015 | D22: 8 | E22: 1200000 | F22: 150000 | G22: kr.
B23: Boring (inkl. etablering, forerør, filter og prøvepumpning) | C23: 2015 | D23: 30 | E23: 200000 | F23: 6666.666667 | G23: kr.
B24: Råvandsstation komplet montering og boringshus/tørbrønd | C24: 2015 | D24: 30 | E24: 100000 | F24: 3333.333333 | G24: kr.
B25: Instrumenter (flowmåler+tryk transducer+alarmer) | C25: 2015 | D25: 10 | E25: 50000 | F25: 5000 | G25: kr.
B26: Pumpe inkl. stigrør og forerørsforsejlinger mv. | C26: 2015 | D26: 15 | E26: 50000 | F26: 3333.333333 | G26: kr.
B27: Elanlæg | C27: 2015 | D27: 20 | E27: 50000 | F27: 2500 | G27: kr.
B28: SRO anlæg | C28: 2015 | D28: 10 | E28: 50000 | F28: 5000 | G28: kr.
B29: Ø 50mm < Ledningsnet = Ø110 mm | C29: 2015 | D29: 75 | E29: 4000000 | F29: 53333.33333 | G29: kr.
B30: Ventiler på Ø 50mm < Ledningsnet = Ø110 mm | C30: 2015 | D30: 75 | E30: 500000 | F30: 6666.666667 | G30: kr.
B31: Stik på ledningsnet, Konstruktioner | C31: 2015 | D31: 75 | E31: 2000000 | F31: 26666.66667 | G31: kr.
B32: Stik på ledningsnet, Mek./EL | C32: 2015 | D32: 75 | E32: 2000000 | F32: 26666.66667 | G32: kr.
B33: Tillæg for 2014 | F33: =SUMIF(C8:C32,"2014",F8:F32) -> 497093.3333 | G33: kr.
B34: Tillæg for 2015 | F34: =SUMIF(C8:C32,"2015",F8:F32) -> 349166.6667 | G34: kr.
B35: Tillæg i alt | F35: =F33+F34 -> 846260 | G35: kr.

Sheet 8. 1-1 omkostninger
A1: ='7. Planlagte investeringer'!A1 -> Energi Viborg Vand A/S
B4: Fane 8. 1:1 omkostninger
B6: Tillæg for budgetterede 1:1 omkostninger i 2015
B7: Betaling til Forsyningssekretariatet | C7: 33000 | D7: kr.
B8: Tjenestemandspensioner | C8: 15000 | D8: kr.
B9: Ejendomsskatter | C9: 170000 | D9: kr.
B10: Tillæg i alt | C10: =SUM(C7:C9) -> 218000 | D10: kr.
B13: Tillæg for afgift for ledningsført vand i 2015
B14: Afgift for ledningsført vand (6,53 kr./m3) | C14: 15019000 | D14: kr.
B15: Tillæg i alt | C15: =SUM(C14:C14) -> 15019000 | D15: kr.
B18: Tillæg for budgetterede nødvendige udgifter til revisorerklæringer samt ordinært medlemskab af DANVA og FVD i 2015
B19: Betaling for ordinært medlemskab af DANVA/FVD | C19: 115000 | D19: kr.
B20: Betaling for revisorerklæringer | C20: 30000 | D20: kr.
B21: Tillæg i alt | C21: =SUM(C19:C20) -> 145000 | D21: kr.
B24: Korrektion af tillæg for faktiske 1:1 omkostninger (inkl. afgift for ledningsført vand, revisorerklæringer og ordinært medlemskab af DANVA/FVD) i 2013
B25: Selskabets faktiske 1:1 omkostninger mv. i 2013, jf. reguleringsregnskabet | C25: 14482885 | D25: kr.
B26: Tillæg for budgetterede 1:1 omkostninger mv. i prisloft 2013 | C26: 14487393 | D26: kr.
B27: Korrektion af tillæg for budgetterede 1:1 omkostninger mv. i 2013 | C27: =C25-C26 -> -4508 | D27: kr.

Sheet 9. Miljø- og servicemål
A1: ='8. 1-1 omkostninger'!A1 -> Energi Viborg Vand A/S
B4: Fane 9. Driftsomkostninger til miljø- og servicemål
B6: Tillæg for budgetterede driftsomkostninger til miljø- og servicemål i 2015
B7: Dokumenteret Drikkevandssikkerhed | C7: 250000 | D7: kr.
B8: Afværgelse af BAM-forurening | C8: 265000 | D8: kr.
B9: Drift af hydrometrisk station | C9: 0 | D9: kr.
B10: Reetablering af dige | C10: 0 | D10: kr.
B11: Analyse af drikkevandskvalitet | C11: 120000 | D11: kr.
B12: Grundvandsbeskyttelse | C12: 70000 | D12: kr.
B13: Tillæg i alt | C13: =SUM(C7:C12) -> 705000 | D13: kr.
B17: Korrektion af tillæg for faktiske driftsomkostninger til miljø- og servicemål i 2013
B18: Selskabets faktiske driftsomkostninger til miljø- og servicemål i 2013, jf. reguleringsregnskabet | C18: 273710 | D18: kr.
B19: Tillæg for budgetterede driftsomkostninger til miljø- og servicemål i prisloft 2013 | C19: 475018 | D19: kr.
B20: Korrektion af tillæg for budgetterede driftsomkostninger til miljø- og servicemål i 2013 | C20: =C18-C19 -> -201308 | D20: kr.

Sheet 10. Nettofinansielle poster
A1: ='2. Samlet prisloft'!A1 -> Energi Viborg Vand A/S
B4: Fane 10. Nettofinansielle poster
B6: Tillæg for budgetterede nettofinansielle poster i 2015
B7: Budgetterede renteudgifter og gebyrer i 2015 | C7: 1200000 | D7: kr.
B8: Budgetterede renteindtægter i 2015 | C8: 100000 | D8: kr.
B9: Tillæg/fradrag i alt | C9: =C7-C8 -> 1100000 | D9: kr.
B13: Korrektion af tillæg for faktiske nettofinansielle poster i 2013
B14: Selskabets faktiske nettofinansielle poster i 2013, jf. reguleringsregnskabet | C14: 1093133 | D14: kr.
B15: Tillæg for budgetterede nettofinansielle poster i prisloft 2013 | C15: 1472009 | D15: kr.
B16: Korrektion af tillæg for budgetterede nettofinansielle poster i 2013 | C16: =C14-C15 -> -378876 | D16: kr.

Sheet 11. Over- eller underdækning (hidden)
A1: ='1. Forside'!A1 -> Energi Viborg Vand A/S
B4: Fane 11. Over- eller underdækning til og med 2010
B6: Tillæg/fradrag for over- eller underdækning til og med 2010
B7: Opgjort over- eller underdækning per 31. december 2010 | C7: 0 | D7: kr.
B8: Heraf beløb indregnet i prislofterne for 2012 - 2014 | C8: 0 | D8: kr.
B9: Endnu ikke indregnet over- eller underdækning | C9: =C7-C8 -> 0 | D9: kr.
B10: Resterende indregningsperiode (fastsat i prisloftet for 2012) | C10: 0 | D10: år
B11: Tillæg/fradrag i alt | C11: =IF(C7=0,0,C9/C10) -> 0 | D11: kr.

Sheet 12. Kontrol med indtægtsrammen
A1: ='11. Over- eller underdækning'!A1 -> Energi Viborg Vand A/S
B4: Fane 12. Korrektion for overholdelse af indtægtsrammen i prisloftet for 2013
B6: Samlet opgørelse vedrørende overholdelse af indtægtsrammen i prisloftet for 2013
B7: Indtægtsramme i prisloftet for 2013 | E7: 42610863 | F7: kr.
B8: Ikke anvendt likviditet vedrørende investeringer i 2013
B9: Tillæg for historiske investeringer | C9: 10879248 | D9: kr.
B10: Tillæg for gennemførte investeringer i 2011 | C10: 305575 | D10: kr.
B11: Korrektion af tillæg for planlagte investeringer i 2011 | C11: 229500 | D11: kr.
B12: Tillæg for planlagte investeringer i 2012 og 2013 | C12: 729034 | D12: kr.
B13: Indtægter fra tilslutningsbidrag | C13: 2137480 | D13: kr.
B14: Indtægter fra salg af anlægsaktiver | C14: 30000 | D14: kr.
B15: Erstatninger vedr. anlægsaktiver mv. | C15: 0 | D15: kr.
B16: Ekstraordinær effektiviseringsgevinst anvendt til investeringer | C16: 2467457 | D16: kr.
B17: Udgifter til investeringer | C17: -14563809 | D17: kr.
B18: Ikke anvendt likviditet vedr. investeringer i alt | C18: =SUM(C9:C17) -> 2214485 | D18: kr. | E18: =IF(C18<0,0,-C18) -> -2214485 | F18: kr.
B19: Ekstraordinære effektiviseringsgevinster anvendt til takstnedsættelse
B20: Ekstraordinær effektiviseringsgevinst anvendt til takstnedsættelse | C20: 0 | D20: kr. | E20: =-C20 -> 0 | F20: kr.
B21: Korrektion af ikke opkrævet tillæg fra 2011 i prisloft 2013
B22: Korrektion af ikke opkrævet tillæg fra 2011 i prisloft 2013 | C22: 0 | D22: kr. | E22: =-C22 -> 0 | F22: kr.
B23: Indtægter fra primære aktiviteter mv.
B24: Indtægter fra kubikmetertakster, faste takster, særbidrag, målergebyrer samt andre takster og gebyrer | C24: 40366875 | D24: kr.
B25: Andre indtægter i prisloftåret, som selskabet har opnået i forbindelse med eller som følge af selskabets primære aktiviteter | C25: 0 | D25: kr.
B26: Indtægter fra primære aktiviteter mv. i alt | C26: =SUM(C24:C25) -> 40366875 | D26: kr. | E26: =-C26 -> -40366875 | F26: kr.
B27: Tillæg/fradrag i prisloftet for 2015 i alt | E27: =E7+E18+E20+E22+E26 -> 29503 | F27: kr.
B31: Oversigt over ekstraordinære effektiviseringsgevinster
C33: 2012 | E33: 2013 | G33: 2014 | I33: 2015 | K33: 2016
B34: Indhentet ekstraordinær effektiviseringsgevinst | C34: 4722461 | D34: kr. | E34: 5138623 | F34: kr. | H34: kr. | J34: kr. | L34: kr.
B35: Gevinst anvendt til investeringer | C35: 0 | D35: kr. | E35: 2467457 | F35: kr. | H35: kr. | J35: kr. | L35: kr.
B36: Gevinst anvendt til takstnedsættelse | C36: 0 | D36: kr. | E36: 0 | F36: kr. | H36: kr. | J36: kr. | L36: kr.
B37: Korrektion for effektiviseringsgevinst der ikke er anvendt inden 4 år | C37: 0 | D37: kr. | E37: 0 | F37: kr. | H37: kr. | J37: kr. | K37: =IF(C38>SUM(E35:I36),C38-SUM(E35:I36),0)*-1 -> -2255004 | L37: kr.
B38: Resterende gevinst | C38: =C34-C35-C36 -> 4722461 | D38: kr. | E38: =C38+E34-E35-E36 -> 7393627 | F38: kr. | G38: =E38+G34-G35-G36 -> 7393627 | H38: kr. | I38: =G38+I34-I35-I36 -> 7393627 | J38: kr. | K38: =K34-K35-K36+K37+I38 -> 5138623 | L38: kr.
